bitfinex/quotes_BTCUSD_20241202
["timestamp","ask_amount","ask_price","bid_price","bid_amount"]
[1733102486948,0.0068664,97868.0,97867.0,0.69316178]
[1733102487153,0.0068664,97868.0,97867.0,0.69416178]
[1733102487381,0.0068664,97868.0,97867.0,0.69316178]
[1733102487809,0.0068664,97868.0,97867.0,0.69416178]
[1733102488705,0.0068664,97868.0,97867.0,0.56680378]
[1733102488936,0.0068664,97868.0,97867.0,0.66680378]
[1733102489167,0.0043664,97868.0,97867.0,0.56680378]
[1733102489614,0.0002,97869.0,97868.0,0.15]
[1733102489863,0.0002,97869.0,97868.0,0.26661194]
[1733102490092,0.0002,97869.0,97868.0,0.26480378]
[1733102490549,0.0002,97869.0,97868.0,0.28780378]
[1733102490800,0.0002,97869.0,97868.0,0.38884423]
[1733102491030,0.0002,97869.0,97868.0,0.63884423]
[1733102491254,0.0072,97869.0,97868.0,0.63884423]
[1733102491480,0.0072,97869.0,97868.0,0.63984423]
[1733102491732,0.0072,97869.0,97868.0,0.73984423]
[1733102492008,0.0072,97869.0,97868.0,0.73884423]
[1733102492426,0.00716,97869.0,97868.0,0.73884423]
[1733102492660,0.00016,97869.0,97868.0,0.73784423]
[1733102492870,0.00816,97869.0,97868.0,0.80028387]
[1733102493303,0.00045861,97882.0,97881.0,1.277329]
[1733102493532,0.00045861,97882.0,97881.0,2.24467421]
[1733102494454,0.00063654,97882.0,97881.0,2.24467421]
[1733102494665,0.01063654,97882.0,97881.0,2.24667421]
[1733102495512,0.01063654,97882.0,97881.0,2.91147421]
[1733102495942,0.00018989,97902.0,97898.0,1.073]
[1733102495989,0.00018989,97902.0,97898.0,1.70084521]
[1733102497559,0.00104,97899.0,97898.0,1.70084521]
[1733102497763,0.0019054,97899.0,97898.0,1.71149922]
[1733102497972,0.0019054,97899.0,97898.0,1.71249922]
[1733102497973,0.0059054,97899.0,97898.0,1.71249922]
[1733102498220,0.102114,97930.0,97924.0,0.323]
[1733102498494,2e-05,97931.0,97927.0,0.10284521]
[1733102498722,0.10211,97934.0,97930.0,0.10284521]
[1733102499143,0.20422,97934.0,97930.0,0.10284521]
[1733102499367,0.10270323,97934.0,97930.0,0.10284521]
[1733102499592,0.20481323,97934.0,97930.0,0.10284521]
[1733102500250,0.102111,97932.0,97930.0,0.10284521]
[1733102500461,0.03114635,97931.0,97930.0,0.11184521]
[1733102501120,0.03114635,97931.0,97930.0,0.12084521]
[1733102501333,0.03114635,97931.0,97930.0,0.06714857]
[1733102501559,0.03114635,97931.0,97930.0,0.07614857]
[1733102501994,0.03114635,97931.0,97930.0,0.018]
[1733102502246,0.02476153,97931.0,97930.0,0.018]
[1733102502484,0.02476153,97931.0,97930.0,0.009]
[1733102502727,0.02476153,97931.0,97930.0,0.018]
[1733102502934,0.03114635,97931.0,97930.0,0.009]
[1733102503387,0.09192,97911.0,97910.0,0.00180753]
[1733102503629,0.09192,97911.0,97910.0,0.10284521]
[1733102503903,0.00953195,97911.0,97910.0,0.10284521]
[1733102504563,0.00953195,97911.0,97910.0,0.10784521]
[1733102505014,0.00953195,97911.0,97910.0,0.10284521]
[1733102506120,0.00953195,97911.0,97910.0,0.10384521]
[1733102507524,0.00953195,97911.0,97910.0,0.10484521]
[1733102508202,0.183836,97914.0,97910.0,0.10484521]
[1733102508416,0.183836,97914.0,97911.0,0.10284521]
[1733102508687,0.167919,97912.0,97911.0,0.10284521]
[1733102508877,0.17745769,97912.0,97911.0,0.10284521]
[1733102509366,0.167919,97912.0,97911.0,0.10284521]
[1733102510232,0.167919,97912.0,97911.0,0.10384521]
[1733102510667,0.091919,97912.0,97911.0,0.10384521]
[1733102510903,0.091919,97912.0,97911.0,0.10484521]
[1733102512183,0.091907,97925.0,97918.0,0.3]
[1733102512408,0.0814,97927.0,97919.0,0.10284521]
[1733102512409,0.091909,97922.0,97919.0,0.10284521]
[1733102512656,0.02004184,97930.0,97919.0,0.10284521]
[1733102512881,0.0008664,97939.0,97933.0,0.3]
[1733102513104,0.0008664,97939.0,97933.0,0.40284521]
[1733102513321,0.0008664,97939.0,97933.0,0.42584521]
[1733102513530,0.0008664,97939.0,97933.0,0.43674794]
[1733102514463,0.0008664,97939.0,97934.0,0.023]
[1733102514679,0.0008664,97939.0,97933.0,0.43674794]
[1733102514680,0.00104422,97939.0,97938.0,0.10284521]
[1733102516687,0.00104422,97939.0,97938.0,0.10584521]
[1733102516923,0.00104422,97939.0,97938.0,0.12884521]
[1733102517398,0.00104422,97939.0,97938.0,0.13065206]
[1733102517835,0.00104422,97939.0,97938.0,0.14152971]
[1733102518485,0.00104422,97939.0,97938.0,0.11852971]
[1733102518689,0.00104422,97939.0,97938.0,0.10765206]
[1733102518910,0.00104422,97939.0,97938.0,0.10584521]
[1733102522450,0.00104422,97939.0,97938.0,0.40584521]
[1733102522681,0.091892,97941.0,97938.0,0.40584521]
[1733102522937,0.091892,97941.0,97938.0,0.40602303]
[1733102523630,0.183784,97941.0,97938.0,0.40302303]
[1733102523846,0.0008648,97939.0,97938.0,0.40302303]
[1733102524087,0.0005648,97939.0,97938.0,0.40502303]
[1733102524326,0.0005648,97939.0,97938.0,0.10502303]
[1733102524808,0.0005648,97939.0,97938.0,0.10302303]
[1733102525039,0.0005648,97939.0,97938.0,0.10602303]
[1733102525499,0.0005648,97939.0,97938.0,0.11612766]
[1733102525735,0.0005648,97939.0,97938.0,0.10602303]
[1733102527316,0.0005648,97939.0,97938.0,0.11202303]
[1733102527747,0.0005648,97939.0,97938.0,0.12102303]
[1733102528205,0.0005648,97939.0,97938.0,0.12860173]
[1733102528434,0.0005648,97939.0,97938.0,0.11960173]
[1733102528668,0.0005648,97939.0,97938.0,0.11060173]
[1733102528897,0.0005648,97939.0,97938.0,0.11960173]
[1733102529365,0.0005648,97939.0,97938.0,0.11060173]
[1733102530023,0.0005648,97939.0,97938.0,0.12860173]
[1733102531792,0.0005648,97939.0,97938.0,0.11960173]
[1733102532001,0.0005648,97939.0,97938.0,0.12860173]
[1733102532651,0.0005648,97939.0,97938.0,0.11960173]
[1733102532905,0.0475648,97939.0,97938.0,0.01675652]
[1733102533108,0.1296648,97939.0,97938.0,0.01675652]
[1733102533315,0.14981926,97939.0,97938.0,0.02575652]
[1733102533530,0.14981926,97939.0,97938.0,0.01675652]
[1733102533775,0.081689,97932.0,97931.0,0.8595]
[1733102534379,0.081706,97911.0,97910.0,0.0017296]
[1733102534742,0.081706,97911.0,97910.0,0.10457481]
[1733102535207,0.08152041,97911.0,97910.0,0.10457481]
[1733102536362,0.08152041,97911.0,97910.0,0.11357481]
[1733102536836,0.08152041,97911.0,97910.0,0.10457481]
[1733102537067,0.07652041,97911.0,97910.0,0.10457481]
[1733102537950,0.07752041,97911.0,97910.0,0.11357481]
[1733102538429,0.20182041,97911.0,97910.0,0.11357481]
[1733102538658,0.30282041,97911.0,97910.0,0.12257481]
[1733102538868,0.30282041,97911.0,97910.0,0.11357481]
[1733102539083,0.20282041,97911.0,97910.0,0.12257481]
[1733102539320,0.07752041,97911.0,97910.0,0.12257481]
[1733102539545,0.07752041,97911.0,97910.0,0.11357481]
[1733102539988,0.07652041,97911.0,97910.0,0.11357481]
[1733102540202,0.07752041,97911.0,97910.0,0.12257481]
[1733102541139,0.07652041,97911.0,97910.0,0.11357481]
[1733102541566,0.07752041,97911.0,97910.0,0.0197296]
[1733102541779,0.07652041,97911.0,97910.0,0.0107296]
[1733102542035,0.07652041,97911.0,97910.0,0.0017296]
[1733102542513,0.07652041,97911.0,97910.0,0.0107296]
[1733102543180,0.07752041,97911.0,97910.0,0.0107296]
[1733102543425,0.07652041,97911.0,97910.0,0.11357481]
[1733102543889,0.07752041,97911.0,97910.0,0.12257481]
[1733102545005,0.07752041,97911.0,97910.0,0.11357481]
[1733102545450,0.07752041,97911.0,97910.0,0.12257481]
[1733102545900,0.07752041,97911.0,97910.0,0.11357481]
[1733102546137,0.07752041,97911.0,97910.0,0.12257481]
[1733102547738,0.07838541,97911.0,97910.0,0.12257481]
[1733102547970,0.001865,97911.0,97910.0,0.12257481]
[1733102560194,0.081698,97921.0,97910.0,0.12257481]
[1733102560286,0.02035501,97927.0,97910.0,0.12257481]
[1733102560498,0.081702,97917.0,97911.0,0.10465278]
[1733102560715,0.081702,97917.0,97911.0,0.10284521]
[1733102560952,0.163404,97917.0,97911.0,0.10284521]
[1733102561884,0.164404,97917.0,97911.0,0.11184521]
[1733102562525,0.14298,97915.0,97911.0,0.11884521]
[1733102563705,0.02086375,97912.0,97911.0,0.10984521]
[1733102564131,0.02086375,97912.0,97911.0,0.016]
[1733102564368,0.02086375,97912.0,97911.0,0.009]
[1733102564814,0.02086375,97912.0,97911.0,0.008]
[1733102565276,0.02186375,97912.0,97911.0,0.009]
[1733102565487,0.02186375,97912.0,97911.0,0.017]
[1733102568507,0.10336375,97912.0,97911.0,0.017]
[1733102569191,0.10336375,97912.0,97911.0,0.009]
[1733102569400,0.02186375,97912.0,97911.0,0.014]
[1733102570062,0.02086375,97912.0,97911.0,0.005]
[1733102570534,0.02186375,97912.0,97911.0,0.014]
[1733102570753,0.071493,97911.0,97910.0,0.0017296]
[1733102570971,0.071493,97911.0,97910.0,0.10457481]
[1733102571611,0.001,97912.0,97910.0,0.10457481]
[1733102571833,0.071492,97913.0,97911.0,0.10284521]
[1733102572311,0.07149,97915.0,97911.0,0.10284521]
[1733102572747,0.14298,97915.0,97911.0,0.10284521]
[1733102573012,0.14298,97915.0,97911.0,0.10457501]
[1733102573228,0.02038447,97912.0,97911.0,0.10457501]
[1733102573443,0.14298,97915.0,97911.0,0.10457501]
[1733102573885,0.16305998,97915.0,97911.0,0.11357501]
[1733102574095,0.16405998,97915.0,97911.0,0.11357501]
[1733102574388,0.16305998,97915.0,97911.0,0.10457501]
[1733102574608,0.001,97912.0,97911.0,0.11357501]
[1733102574851,0.001,97912.0,97911.0,0.10457501]
[1733102575075,0.16305998,97915.0,97911.0,0.10457501]
[1733102575287,0.16405998,97915.0,97911.0,0.11357501]
[1733102575513,0.16405998,97915.0,97911.0,0.11857501]
[1733102576396,0.07249,97915.0,97911.0,0.11857501]
[1733102576602,0.07149,97915.0,97911.0,0.10957501]
[1733102576823,0.0008649,97917.0,97911.0,0.40957501]
[1733102577037,0.001,97912.0,97911.0,0.41857501]
[1733102577268,0.0008649,97917.0,97911.0,0.40957501]
[1733102577684,0.001,97915.0,97911.0,0.41857501]
[1733102577916,0.0008649,97917.0,97911.0,0.40457501]
[1733102578154,0.0008649,97917.0,97911.0,0.40557501]
[1733102578368,0.006,97912.0,97911.0,0.40557501]
[1733102578587,0.07149,97916.0,97911.0,0.40457501]
[1733102579734,0.14298,97916.0,97911.0,0.10457501]
[1733102579942,0.071491,97914.0,97911.0,0.10457501]
[1733102581162,0.071491,97914.0,97911.0,0.0017298]
[1733102581415,0.071491,97914.0,97883.0,0.3773]
[1733102581416,0.071513,97884.0,97883.0,0.3773]
[1733102581668,0.071513,97884.0,97883.0,0.65384521]
[1733102582409,0.071511,97887.0,97883.0,0.65384521]
[1733102582625,0.071511,97887.0,97884.0,0.10284521]
[1733102584220,0.071508,97891.0,97885.0,0.1277]
[1733102584428,0.02071185,97903.0,97886.0,0.10284521]
[1733102584701,0.07151,97889.0,97886.0,0.10465323]
[1733102584915,0.07151,97889.0,97886.0,0.10284521]
[1733102585178,0.002,97887.0,97886.0,0.10284521]
[1733102585634,0.002,97887.0,97886.0,0.10457521]
[1733102586373,0.07151,97889.0,97886.0,0.10457521]
[1733102586606,0.07151,97889.0,97886.0,0.10557521]
[1733102587042,0.07151,97889.0,97886.0,0.10457521]
[1733102587488,0.07151,97889.0,97886.0,0.10557521]
[1733102587745,0.07150968,97889.0,97886.0,0.10657521]
[1733102587983,0.07150968,97889.0,97886.0,0.10557521]
[1733102588215,0.07150968,97889.0,97886.0,0.10657521]
[1733102589600,0.07150968,97889.0,97886.0,0.10557521]
[1733102589836,0.071507,97893.0,97886.0,0.10657521]
[1733102590051,0.07151,97888.0,97886.0,0.10657521]
[1733102590277,0.071507,97892.0,97886.0,0.10557521]
[1733102590514,0.02071185,97903.0,97886.0,0.10457521]
[1733102590748,0.071508,97890.0,97886.0,0.10838324]
[1733102590995,0.071508,97890.0,97886.0,0.10657521]
[1733102591207,0.071505,97895.0,97886.0,0.10457521]
[1733102591423,0.071505,97895.0,97886.0,0.10657521]
[1733102591684,0.071509,97890.0,97886.0,0.10738325]
[1733102591897,0.071509,97890.0,97886.0,0.10557521]
[1733102592127,0.071509,97890.0,97886.0,0.10657521]
[1733102592408,0.02071185,97903.0,97886.0,0.10657521]
[1733102592409,0.02071185,97903.0,97886.0,0.10557521]
[1733102592640,0.204308,97891.0,97886.0,0.10738324]
[1733102592890,0.204308,97891.0,97886.0,0.10457521]
[1733102593337,0.204308,97891.0,97886.0,0.10557521]
[1733102593791,0.204308,97891.0,97886.0,0.10457521]
[1733102594010,0.204308,97891.0,97886.0,0.10557521]
[1733102594222,0.204308,97891.0,97886.0,0.10657521]
[1733102594475,0.408616,97891.0,97886.0,0.10657521]
[1733102594681,0.408616,97891.0,97886.0,0.10557521]
[1733102594908,0.408616,97891.0,97886.0,0.10657521]
[1733102595819,0.408616,97891.0,97886.0,0.10457521]
[1733102596036,0.408616,97891.0,97886.0,0.10857521]
[1733102596481,0.408616,97891.0,97886.0,0.11157521]
[1733102596692,0.204313,97889.0,97886.0,0.10857521]
[1733102597380,0.204313,97889.0,97886.0,0.10457521]
[1733102597830,0.204313,97889.0,97886.0,0.10757521]
[1733102598293,0.204313,97889.0,97886.0,0.10457521]
[1733102599084,0.204313,97889.0,97886.0,0.10757521]
[1733102599499,0.206308,97891.0,97886.0,0.10757521]
[1733102599715,0.204308,97891.0,97886.0,0.10757521]
[1733102599930,0.001,97889.0,97886.0,0.10757521]
[1733102600156,0.204315,97888.0,97886.0,0.10757521]
[1733102600594,0.204308,97891.0,97886.0,0.10457521]
[1733102601212,0.408617,97891.0,97886.0,0.10757521]
[1733102601421,0.410617,97891.0,97886.0,0.10457521]
[1733102601633,0.206308,97891.0,97886.0,0.10457521]
[1733102602116,0.206308,97891.0,97886.0,0.10557521]
[1733102602325,0.002,97891.0,97886.0,0.10557521]
[1733102602541,0.204311,97890.0,97886.0,0.10557521]
[1733102603223,0.002,97891.0,97886.0,0.10557521]
[1733102603448,0.20431,97890.0,97886.0,0.10557521]
[1733102603647,0.204314,97889.0,97886.0,0.10557521]
[1733102604126,0.204314,97889.0,97886.0,0.10457521]
[1733102604602,0.20851427,97920.0,97887.0,0.10284521]
[1733102604603,0.10851427,97910.0,97887.0,0.10284521]
[1733102604809,0.204243,97923.0,97890.0,0.3]
[1733102605029,0.204292,97899.0,97892.0,0.10284521]
[1733102605238,0.204281,97904.0,97892.0,0.10284521]
[1733102605448,0.408563,97904.0,97893.0,0.00180789]
[1733102605670,0.408563,97904.0,97894.0,0.1046531]
[1733102606104,0.01993177,97908.0,97894.0,0.1046531]
[1733102606308,0.204292,97899.0,97894.0,0.1046531]
[1733102606514,0.204292,97899.0,97894.0,0.10284521]
[1733102607187,0.204287,97902.0,97894.0,0.10284521]
[1733102607641,0.00118652,97899.0,97894.0,0.11184521]
[1733102607877,0.00118652,97899.0,97895.0,0.10465307]
[1733102608107,0.00018652,97899.0,97895.0,0.10465307]
[1733102608332,0.00118652,97899.0,97895.0,0.10465307]
[1733102608537,0.00018652,97899.0,97896.0,0.0808]
[1733102608743,0.00018652,97899.0,97897.0,0.10465304]
[1733102608950,0.00018652,97899.0,97896.0,0.0808]
[1733102608951,0.009,97899.0,97898.0,0.10465307]
[1733102609163,0.01993177,97908.0,97905.0,0.3]
[1733102609371,0.01993177,97908.0,97906.0,0.10284521]
[1733102610259,0.01993177,97908.0,97907.0,0.10465288]
[1733102610496,0.000865,97914.0,97908.0,0.0829]
[1733102610740,0.000865,97914.0,97909.0,0.10465281]
[1733102611390,0.000865,97914.0,97909.0,0.10284521]
[1733102611622,0.000865,97914.0,97910.0,0.00180758]
[1733102611900,0.000865,97914.0,97913.0,0.10284521]
[1733102612115,0.000865,97914.0,97913.0,0.10465261]
[1733102613227,0.00104259,97914.0,97913.0,0.10565261]
[1733102613656,0.00104259,97914.0,97913.0,0.18415261]
[1733102614091,0.00104259,97914.0,97913.0,0.18515261]
[1733102614340,0.00104259,97914.0,97913.0,0.18615261]
[1733102614546,0.00104259,97914.0,97913.0,0.18515261]
[1733102615021,0.00104259,97914.0,97913.0,0.18615261]
[1733102615247,0.00104259,97914.0,97913.0,0.18415261]
[1733102615674,0.00104259,97914.0,97913.0,0.33615261]
[1733102615883,0.00104259,97914.0,97913.0,0.33434521]
[1733102616966,0.00104259,97914.0,97913.0,0.33334521]
[1733102617407,0.00104259,97914.0,97913.0,0.25484521]
[1733102617854,0.00104259,97914.0,97913.0,0.25384521]
[1733102618117,0.00104259,97914.0,97913.0,0.10484521]
[1733102618338,0.00104259,97914.0,97913.0,0.10384521]
[1733102618557,0.00104259,97914.0,97913.0,0.10284521]
[1733102618766,0.00104259,97914.0,97913.0,0.10384521]
[1733102618974,0.00104259,97914.0,97913.0,0.10484521]
[1733102619431,0.00104259,97914.0,97913.0,0.10384521]
[1733102619643,0.00104259,97914.0,97913.0,0.63315263]
[1733102619853,0.00104259,97914.0,97913.0,0.63234521]
[1733102622045,0.00104259,97914.0,97913.0,0.63034521]
[1733102622282,0.00104259,97914.0,97913.0,0.63134521]
[1733102622721,0.00104259,97914.0,97913.0,0.63234521]
[1733102623187,0.00104259,97914.0,97913.0,0.63134521]
[1733102623416,0.00104259,97914.0,97913.0,0.63234521]
[1733102623659,0.00104259,97914.0,97913.0,0.63134521]
[1733102624114,0.00104259,97914.0,97913.0,0.63234521]
[1733102624373,0.00104259,97914.0,97913.0,0.63134521]
[1733102625303,0.00104259,97914.0,97913.0,0.63234521]
[1733102626442,0.00022748,97914.0,97913.0,0.63234521]
[1733102634609,0.00022748,97914.0,97913.0,0.63407781]
[1733102636572,0.204215,97936.0,97915.0,0.15]
[1733102636789,0.00099796,97917.0,97916.0,0.25465253]
[1733102636999,0.00099796,97917.0,97916.0,0.25284521]
[1733102637679,0.00099796,97917.0,97916.0,0.45710121]
[1733102638296,0.00099796,97917.0,97916.0,0.45810121]
[1733102638723,0.00099796,97917.0,97916.0,0.45910121]
[1733102639449,0.00099796,97917.0,97916.0,0.25484521]
[1733102639664,0.00099796,97917.0,97916.0,0.10484521]
[1733102640542,0.00099796,97917.0,97916.0,0.10384521]
[1733102640998,0.00099796,97917.0,97916.0,0.10484521]
[1733102641205,0.00099796,97917.0,97916.0,0.10284521]
[1733102641675,0.00099796,97917.0,97916.0,0.10484521]
[1733102642146,0.00099796,97917.0,97916.0,0.10384521]
[1733102642891,0.00099796,97917.0,97916.0,0.10484521]
[1733102643094,0.00099796,97917.0,97916.0,0.10384521]
[1733102643538,0.00999796,97917.0,97916.0,0.10484521]
[1733102643802,0.00099796,97917.0,97916.0,0.10384521]
[1733102644008,0.00999796,97917.0,97916.0,0.10384521]
[1733102644476,0.01799796,97917.0,97916.0,0.10484521]
[1733102644892,0.00999796,97917.0,97916.0,0.10384521]
[1733102645370,0.01799796,97917.0,97916.0,0.10484521]
[1733102646526,0.01799796,97917.0,97916.0,0.10665272]
[1733102646992,0.01799796,97917.0,97916.0,0.58235272]
[1733102647209,0.01799796,97917.0,97916.0,0.61227691]
[1733102649047,0.01799796,97917.0,97916.0,0.62333599]
[1733102651198,0.01799796,97917.0,97916.0,0.72333599]
[1733102653316,0.00999796,97917.0,97916.0,0.72133599]
[1733102653551,0.00099796,97917.0,97916.0,0.72133599]
[1733102653784,0.01599796,97917.0,97916.0,0.72333599]
[1733102658419,0.00899796,97917.0,97916.0,0.72233599]
[1733102658634,0.00899796,97917.0,97916.0,0.77023599]
[1733102658847,0.00899796,97917.0,97916.0,0.87023599]
[1733102659286,0.00099796,97917.0,97916.0,0.86923599]
[1733102659732,0.00599796,97917.0,97916.0,0.86923599]
[1733102659952,0.00999796,97917.0,97916.0,0.86923599]
[1733102660416,0.00999796,97917.0,97916.0,0.92810228]
[1733102660654,0.0005648,97939.0,97938.0,1.25421]
[1733102660869,0.0005648,97939.0,97938.0,2.40035521]
[1733102661505,0.0005648,97939.0,97938.0,2.15035521]
[1733102662888,0.0025648,97939.0,97938.0,2.15135521]
[1733102663578,0.0045648,97939.0,97938.0,2.15235521]
[1733102664442,0.0045648,97939.0,97938.0,2.25235521]
[1733102664675,0.0045648,97939.0,97938.0,2.29965521]
[1733102664882,0.0045648,97939.0,97938.0,2.33126439]
[1733102665316,0.0045648,97939.0,97938.0,2.34220187]
[1733102665797,0.0005648,97939.0,97938.0,2.37634108]
[1733102666022,0.00025245,97943.0,97938.0,2.40034108]
[1733102666234,0.00028373,97963.0,97958.0,0.55]
[1733102666492,0.00028373,97963.0,97958.0,0.90384521]
[1733102667337,0.00028373,97963.0,97958.0,0.80384521]
[1733102667578,0.00102976,97959.0,97958.0,0.80384521]
[1733102667784,0.00302976,97959.0,97958.0,0.80484521]
[1733102668471,0.00302976,97959.0,97958.0,0.81598944]
[1733102668990,0.00102976,97959.0,97958.0,0.81598944]
[1733102669409,0.00102976,97959.0,97958.0,0.81698944]
[1733102669410,0.00302976,97959.0,97958.0,0.81698944]
[1733102669903,0.00102976,97959.0,97958.0,0.81598944]
[1733102670104,0.00302976,97959.0,97958.0,0.81598944]
[1733102670542,0.00302976,97959.0,97958.0,0.81698944]
[1733102670782,0.00302976,97959.0,97958.0,0.81498944]
[1733102671006,0.00102976,97959.0,97958.0,0.81498944]
[1733102672184,0.00102976,97959.0,97958.0,0.81598944]
[1733102672409,0.00302976,97959.0,97958.0,0.81698944]
[1733102672647,0.00302976,97959.0,97958.0,0.81598944]
[1733102672888,0.00102976,97959.0,97958.0,0.81598944]
[1733102673088,0.00302976,97959.0,97958.0,0.81598944]
[1733102673542,0.00302976,97959.0,97958.0,1.06698944]
[1733102673757,0.00102976,97959.0,97958.0,1.06498944]
[1733102673974,0.00102976,97959.0,97958.0,1.16498944]
[1733102674186,0.00302976,97959.0,97958.0,1.16698944]
[1733102675285,0.00102976,97959.0,97958.0,1.06598944]
[1733102675499,0.00102976,97959.0,97958.0,0.81498944]
[1733102675749,0.00302976,97959.0,97958.0,0.81698944]
[1733102676214,0.17961429,97972.0,97971.0,0.3]
[1733102676447,0.17961429,97972.0,97971.0,0.40284521]
[1733102677776,0.204125,97979.0,97971.0,0.40284521]
[1733102678034,0.204125,97979.0,97978.0,0.10284521]
[1733102679363,0.204125,97979.0,97978.0,0.10484521]
[1733102679579,0.206125,97979.0,97978.0,0.10484521]
[1733102683510,0.2069913,97979.0,97978.0,0.10484521]
[1733102684904,0.0028663,97979.0,97978.0,0.10484521]
[1733102686218,0.0008663,97979.0,97978.0,0.10384521]
[1733102686439,0.0028663,97979.0,97978.0,0.10484521]
[1733102686664,0.0028663,97979.0,97978.0,0.18154521]
[1733102686871,0.0008663,97979.0,97978.0,0.10284521]
[1733102687080,0.0008663,97979.0,97978.0,0.10384521]
[1733102687322,0.0008663,97979.0,97978.0,0.25284521]
[1733102688185,0.0028663,97979.0,97978.0,0.25384521]
[1733102688699,0.0028663,97979.0,97978.0,0.25484521]
[1733102688903,0.0008663,97979.0,97978.0,0.25284521]
[1733102689129,0.0028663,97979.0,97978.0,0.25384521]
[1733102689330,0.0028663,97979.0,97978.0,0.25484521]
[1733102690629,0.0028663,97979.0,97978.0,0.25384521]
[1733102691275,0.0008663,97979.0,97978.0,0.25284521]
[1733102691700,0.0028663,97979.0,97978.0,0.25384521]
[1733102691926,0.0028663,97979.0,97978.0,0.25484521]
[1733102692128,0.0008663,97979.0,97978.0,0.25384521]
[1733102692339,0.0008663,97979.0,97978.0,0.25284521]
[1733102692540,0.0028663,97979.0,97978.0,0.25484521]
[1733102692754,0.0028663,97979.0,97978.0,0.26554897]
[1733102693209,0.0008663,97979.0,97978.0,0.25384521]
[1733102693425,0.0008663,97979.0,97978.0,0.25284521]
[1733102693865,0.0008663,97979.0,97978.0,0.25384521]
[1733102694503,0.0028663,97979.0,97978.0,0.25484521]
[1733102694994,0.0008663,97979.0,97978.0,0.25384521]
[1733102695212,0.0028663,97979.0,97978.0,0.25384521]
[1733102695440,0.0800663,97979.0,97978.0,0.25484521]
[1733102695677,0.0780663,97979.0,97978.0,0.10284521]
[1733102696116,0.0800663,97979.0,97978.0,0.10484521]
[1733102696310,0.0800663,97979.0,97978.0,0.10384521]
[1733102697223,0.0800663,97979.0,97978.0,0.10484521]
[1733102697442,0.0028663,97979.0,97978.0,0.10484521]
[1733102697665,0.0008663,97979.0,97978.0,0.10384521]
[1733102698160,0.0028663,97979.0,97978.0,0.10484521]
[1733102698370,0.0028663,97979.0,97978.0,0.10384521]
[1733102698586,0.0008663,97979.0,97978.0,0.10284521]
[1733102698866,0.0028663,97979.0,97978.0,0.10484521]
[1733102699126,0.0028663,97979.0,97978.0,0.10384521]
[1733102699568,0.204108,97987.0,97986.0,0.3]
[1733102699798,0.01359108,97991.0,97986.0,0.40284521]
[1733102700039,0.01359108,97991.0,97990.0,0.10284521]
[1733102701373,0.01376874,97991.0,97990.0,0.10284521]
[1733102702065,0.01576874,97991.0,97990.0,0.10384521]
[1733102702511,0.01576874,97991.0,97990.0,0.10484521]
[1733102704619,0.01376874,97991.0,97990.0,0.10284521]
[1733102705012,0.01376874,97991.0,97990.0,0.10384521]
[1733102705229,0.01376874,97991.0,97990.0,0.10484521]
[1733102707192,0.01376874,97991.0,97990.0,0.10384521]
[1733102707412,0.01376874,97991.0,97990.0,0.10484521]
[1733102707871,0.01463454,97991.0,97990.0,0.10484521]
[1733102708509,0.09303454,97991.0,97990.0,0.10484521]
[1733102708934,0.09303454,97991.0,97990.0,0.10384521]
[1733102709174,0.01463454,97991.0,97990.0,0.10384521]
[1733102709402,0.01463454,97991.0,97990.0,0.10484521]
[1733102714562,0.09553454,97991.0,97990.0,0.10484521]
[1733102714781,0.14153454,97991.0,97990.0,0.10484521]
[1733102715424,0.06063454,97991.0,97990.0,0.10484521]
[1733102717427,0.14213454,97991.0,97990.0,0.10484521]
[1733102718309,0.14213454,97991.0,97990.0,0.002]
[1733102718562,0.14213454,97991.0,97972.0,0.3017316]
[1733102718563,0.612306,97990.0,97972.0,0.3017316]
[1733102718798,0.14213454,97991.0,97973.0,0.10284521]
[1733102718799,0.204135,97974.0,97973.0,0.10284521]
[1733102720088,0.204135,97974.0,97973.0,0.10384521]
[1733102721396,0.212135,97974.0,97973.0,0.10484521]
[1733102722511,0.290635,97974.0,97973.0,0.10484521]
[1733102724299,0.212135,97974.0,97973.0,0.10484521]
[1733102730971,0.212135,97974.0,97973.0,0.10657641]
[1733102733227,0.212135,97974.0,97973.0,0.10383949]
[1733102735056,0.212135,97974.0,97973.0,0.10200967]
[1733102738356,0.212135,97974.0,97973.0,0.0037312]
[1733102739247,0.22316774,97974.0,97973.0,0.0037312]
[1733102739469,0.204135,97974.0,97973.0,0.10457641]
[1733102739743,0.204135,97974.0,97973.0,0.10657641]
[1733102740421,0.204135,97974.0,97973.0,0.11557641]
[1733102740659,0.205135,97974.0,97973.0,0.11557641]
[1733102740919,0.205135,97974.0,97973.0,0.11357641]
[1733102741148,0.205135,97974.0,97973.0,0.12257641]
[1733102741355,0.206135,97974.0,97973.0,0.12257641]
[1733102741780,0.207135,97974.0,97973.0,0.12457641]
[1733102744018,0.205135,97974.0,97973.0,0.11357641]
[1733102744483,0.206135,97974.0,97973.0,0.11957641]
[1733102744734,0.205135,97974.0,97973.0,0.11357641]
[1733102744944,0.206135,97974.0,97973.0,0.12257641]
[1733102745154,0.205135,97974.0,97973.0,0.11357641]
[1733102745373,0.204135,97974.0,97973.0,0.10557641]
[1733102745587,0.205135,97974.0,97973.0,0.11457641]
[1733102745801,0.205135,97974.0,97973.0,0.11357641]
[1733102746272,0.206135,97974.0,97973.0,0.12257641]
[1733102746723,0.329935,97974.0,97973.0,0.12257641]
[1733102749510,0.251635,97974.0,97973.0,0.12257641]
[1733102749741,0.206135,97974.0,97973.0,0.12257641]
[1733102752141,0.002,97974.0,97973.0,0.20187641]
[1733102752391,0.002,97974.0,97973.0,0.20368284]
[1733102753028,0.001,97974.0,97973.0,0.19468284]
[1733102753464,0.001,97974.0,97973.0,0.34468284]
[1733102753699,0.001,97974.0,97973.0,0.34287641]
[1733102754350,0.204104,97989.0,97983.0,0.3]
[1733102754567,0.204091,97996.0,97988.0,0.10284521]
[1733102754780,0.204091,97996.0,97983.0,0.3]
[1733102754781,0.204091,97996.0,97990.0,0.10284521]
[1733102755018,0.204081,98001.0,97990.0,0.10284521]
[1733102755227,0.204092,97995.0,97990.0,0.10284521]
[1733102756118,0.204092,97995.0,97990.0,0.10384521]
[1733102756407,0.408185,97995.0,97990.0,0.10384521]
[1733102757717,0.204092,97995.0,97990.0,0.10484521]
[1733102759742,0.204094,97994.0,97990.0,0.10484521]
[1733102764861,0.204094,97994.0,97990.0,0.18284521]
[1733102765590,0.204091,97996.0,97990.0,0.18284521]
[1733102765822,0.00034629,98004.0,97990.0,0.63174521]
[1733102766333,0.203926,98075.0,98054.0,0.3]
[1733102766580,0.0753,98076.0,98055.0,0.40465003]
[1733102766791,0.07695679,98056.0,98055.0,0.40284521]